{"text_format":"1","workbook":"xlsx","n_sheets":3,"sheets":["Подписанты","Данные АОСР","АОСР"],"not_rendered":{"charts":0,"images":0,"macros":1,"external_links":0,"defined_names":12,"comments":1,"pivot_tables":0},"unopened":[],"bounds":{"document_bytes":16777216,"sheet_cells":100000,"rows_first":2000,"rows_last":500,"rows_between":2000,"halvings":0,"cell_chars":16384,"cell_head_chars":4096},"cells_cut":0,"cells_raw":0,"read":"whole","date_system":"1900"}

{"sheet":"Подписанты","index":0,"n_rows":66,"n_cols":4,"rows_kept":66,"cut":false,"hidden":false,"merged":[[0,7,0,8],[15,7,15,8],[23,7,23,8],[30,7,30,8],[1,7,1,8],[79,1,79,2],[2,4,2,5],[56,0,56,4],[0,0,0,5],[1,0,1,4],[23,0,23,4],[15,0,15,4],[30,0,30,4],[40,0,40,4],[47,0,47,4],[85,1,85,2],[82,1,82,2],[83,1,83,2],[84,1,84,2],[67,0,67,5],[68,0,70,5],[72,1,72,2],[73,1,73,2],[74,1,74,2],[75,1,75,2],[71,0,71,5],[76,1,76,2],[77,1,77,2],[78,1,78,2],[80,1,80,2],[81,1,81,2]]}
[]
[]
[]
[]
[]
[]
[]
[]
[]
[]
[]
[]
[]
[]
[]
[]
[]
[]
[]
[]
[]
[]
[]
[]
[]
[]
[]
[]
[]
[]
[]
[]
[]
[]
[]
[]
[]
[]
[]
[]
[]
[]
[]
[]
[]
[]
[]
[]
[]
[]
[]
[]
[]
[]
[]
[]
[]
[]
[]
[]
[]
[]
[]
[]
[]
[null,null,null,{"$f":"_xlfn.CONCAT(B66,\" \",A66)","v":" "}]

{"sheet":"Данные АОСР","index":1,"n_rows":6,"n_cols":46,"rows_kept":6,"cut":false,"hidden":false,"merged":[]}
[1,2,3,4,5,6,7,8,9,10,11,12,14,15,16,17,18,19,21,22,23,24,25,26,27,28,29,30,31,32,33,34,35,36,37,38,39,40,41,42,43,44]
["Вывод на печать","№Акта","Раздел проекта","№Акта+Раздел","Дата подписания АОСР","Дата начала работ","Дата оконч-я работ","Краткое название","1. К освидетельствованию предъявлены следующие работы:","2. Работы выполнены по проектной документации: ","3. При выполнении работ применены:","4. Предъявлены документы","Протоколы и остальное","Приложения","Протоколы и остальное","6. Разрешается производство последующих работ по","СП, ГОСТы","Технадзор","Приказ, НРС, Распоряжение","Реквизиты","Представитель застройщика (Иные лица)","Приказ, НРС","Представитель лица осуществляющего стро-во","Приказ","Представитель СКК подрядчика","Приказ,распоряжение","Авторский надзор","Приказ,распоряжение","Реквизиты","Представитель лица, выполнившего работы","Приказ","Реквизиты","Иные лица 2","Приказ","Подпись Представитель застройщика","Подпись Представитель лица, осуществляющего строительство","Подпись СКК","Подпись авторского","Подпись лица, выполнившего работы подлежащие освидетельствованию ","Иные лица","Иные лица2","Для протокола"]
[1,"007","000-АС5",{"$f":"_xlfn.CONCAT(B3,\"/\",C3)","v":"007/000-АС5"},{"$f":"G3","v":"2022-12-15"},"2022-12-15","2022-12-15","Засыпка гравием","  Засыпка вручную керамзитовым гравием плот. 600 кг/м3 колодцы -0,93 м3    ","Г.5.0000.012-И.ПН-16-ТПВ_ГТП-04.000-АС5 лист 2","Гравий керамзитовый, АОРПИ № 000.1/000-АС5 от 10.12.2022 г.",{"$f":"IF(ISBLANK(M3),_xlfn.CONCAT(\"Исполнительная схема №\",D3,\" от \",TEXT(E3,\"ДД.ММ.ГГГГ \\г.\")),_xlfn.CONCAT(\"Исполнительная схема №\",D3,\" от \",TEXT(E3,\"ДД.ММ.ГГГГ \\г., \"),M3))","v":"Исполнительная схема №007/000-АС5 от 15.12.2022 г., Протокол испытаний №007/000-АС5 от 15.12.2022 г."},{"$f":"IF(ISNUMBER(SEARCH(\"Ничего не содержит\",AO3)),\"\",_xlfn.CONCAT(\"Протокол испытаний №\",D3,\" от \",TEXT(E3,\"ДД.ММ.ГГГГ \\г.\")))","v":"Протокол испытаний №007/000-АС5 от 15.12.2022 г."},{"$f":"IF(ISBLANK(L3),\"\",L3)","v":"Исполнительная схема №007/000-АС5 от 15.12.2022 г., Протокол испытаний №007/000-АС5 от 15.12.2022 г."},{"$f":"IF(ISBLANK(M3),\"\",M3)","v":"Протокол испытаний №007/000-АС5 от 15.12.2022 г."},"Установка ограждений",{"$f":"J3","v":"Г.5.0000.012-И.ПН-16-ТПВ_ГТП-04.000-АС5 лист 2"},{"$f":"VLOOKUP(AI3,Подписанты!$A$4:$E$15,4,FALSE)","v":{"$error":"#N/A"}},{"$f":"_xlfn.CONCAT(VLOOKUP(AI3,Подписанты!$A$4:$E$15,3,FALSE),\", \",VLOOKUP(AI3,Подписанты!$A$4:$E$15,5,FALSE))","v":{"$error":"#N/A"}},{"$f":"VLOOKUP(AI3,Подписанты!$A$4:$F$15,6,FALSE)","v":{"$error":"#N/A"}},{"$f":"VLOOKUP(AN3,Подписанты!$A$50:$E$56,4,FALSE)","v":{"$error":"#N/A"}},{"$f":"VLOOKUP(AN3,Подписанты!$A$50:$E$56,5,FALSE)","v":{"$error":"#N/A"}},{"$f":"VLOOKUP(AJ3,Подписанты!$A$18:$E$23,4,FALSE)","v":{"$error":"#N/A"}},{"$f":"VLOOKUP(AJ3,Подписанты!$A$18:$E$23,5,FALSE)","v":{"$error":"#N/A"}},{"$f":"VLOOKUP(AK3,Подписанты!$A$26:$E$30,4,FALSE)","v":{"$error":"#N/A"}},{"$f":"_xlfn.CONCAT(VLOOKUP(AK3,Подписанты!$A$26:$E$30,3,FALSE),\", \",VLOOKUP(AK3,Подписанты!$A$26:$E$30,5,FALSE))","v":{"$error":"#N/A"}},null,null,null,null,null,null,null,null,null,null,null,null,null,null,null,null,null,null,null,"шт."]
[2,"005","000-АС5","005/000-АС5","2022-12-15","2022-12-15","2022-12-15","Гидроизоляция бетонных поверхностей","  Гидроизоляция битумным праймером бетонных конструкций, соприкасающихся с грунтом - 7,875  м2","Г.5.0000.012-И.ПН-16-ТПВ_ГТП-04.000-АС5 лист 2","Праймер битумный, АОРПИ № 000.7/000-АС5 от 10.12.2022 г.",{"$f":"IF(ISBLANK(M4),_xlfn.CONCAT(\"Исполнительная схема №\",D4,\" от \",TEXT(E4,\"ДД.ММ.ГГГГ \\г.\")),_xlfn.CONCAT(\"Исполнительная схема №\",D4,\" от \",TEXT(E4,\"ДД.ММ.ГГГГ \\г., \"),M4))","v":"Исполнительная схема №005/000-АС5 от 15.12.2022 г., Протокол испытаний №005/000-АС5 от 15.12.2022 г."},{"$f":"IF(ISNUMBER(SEARCH(\"Ничего не содержит\",AO4)),\"\",_xlfn.CONCAT(\"Протокол испытаний №\",D4,\" от \",TEXT(E4,\"ДД.ММ.ГГГГ \\г.\")))","v":"Протокол испытаний №005/000-АС5 от 15.12.2022 г."},{"$f":"IF(ISBLANK(L4),\"\",L4)","v":"Исполнительная схема №005/000-АС5 от 15.12.2022 г., Протокол испытаний №005/000-АС5 от 15.12.2022 г."},{"$f":"IF(ISBLANK(M4),\"\",M4)","v":"Протокол испытаний №005/000-АС5 от 15.12.2022 г."},null,"Г.5.0000.012-И.ПН-16-ТПВ_ГТП-04.000-АС5 лист 2",{"$f":"VLOOKUP(AI4,Подписанты!$A$4:$E$15,4,FALSE)","v":{"$error":"#N/A"}},{"$f":"VLOOKUP(AI4,Подписанты!$A$4:$E$15,5,FALSE)","v":{"$error":"#N/A"}},{"$f":"VLOOKUP(AI4,Подписанты!$A$4:$F$15,6,FALSE)","v":{"$error":"#N/A"}},{"$f":"VLOOKUP(AN4,Подписанты!$A$50:$E$56,4,FALSE)","v":{"$error":"#N/A"}},{"$f":"VLOOKUP(AN4,Подписанты!$A$50:$E$56,5,FALSE)","v":{"$error":"#N/A"}},{"$f":"VLOOKUP(AJ4,Подписанты!$A$18:$E$23,4,FALSE)","v":{"$error":"#N/A"}},{"$f":"VLOOKUP(AJ4,Подписанты!$A$18:$E$23,5,FALSE)","v":{"$error":"#N/A"}},{"$f":"VLOOKUP(AK4,Подписанты!$A$26:$E$30,4,FALSE)","v":{"$error":"#N/A"}},{"$f":"VLOOKUP(AK4,Подписанты!$A$26:$E$30,5,FALSE)","v":{"$error":"#N/A"}},null,null,null,null,null,null,null,null,null,null,null,null,null,null,null,null,null,null,null,"м3"]
[3,"006","000-АС5","006/000-АС5","2022-12-15","2022-12-15","2022-12-15","Гидроизоляция бетонных поверхностей","  Гидроизоляция холодной сертифицированной битумной мастикой в 2 слоя бетонных конструкций, соприкасающихся с грунтом - 7,875  м2","Г.5.0000.012-И.ПН-16-ТПВ_ГТП-04.000-АС5 лист 2","Мастика битумно-резиновая холодная, АОРПИ № 000.3/000-АС5 от 10.12.2022 г.",{"$f":"IF(ISBLANK(M5),_xlfn.CONCAT(\"Исполнительная схема №\",D5,\" от \",TEXT(E5,\"ДД.ММ.ГГГГ \\г.\")),_xlfn.CONCAT(\"Исполнительная схема №\",D5,\" от \",TEXT(E5,\"ДД.ММ.ГГГГ \\г., \"),M5))","v":"Исполнительная схема №006/000-АС5 от 15.12.2022 г., Протокол испытаний №006/000-АС5 от 15.12.2022 г."},{"$f":"IF(ISNUMBER(SEARCH(\"Ничего не содержит\",AO5)),\"\",_xlfn.CONCAT(\"Протокол испытаний №\",D5,\" от \",TEXT(E5,\"ДД.ММ.ГГГГ \\г.\")))","v":"Протокол испытаний №006/000-АС5 от 15.12.2022 г."},"Исполнительная схема №006/000-АС5 от 15.12.2022 г., Протокол испытаний №006/000-АС5 от 15.12.2022 г.",{"$f":"IF(ISBLANK(M5),\"\",M5)","v":"Протокол испытаний №006/000-АС5 от 15.12.2022 г."},null,"Г.5.0000.012-И.ПН-16-ТПВ_ГТП-04.000-АС5 лист 2",{"$f":"VLOOKUP(AI5,Подписанты!$A$4:$E$15,4,FALSE)","v":{"$error":"#N/A"}},{"$f":"VLOOKUP(AI5,Подписанты!$A$4:$E$15,5,FALSE)","v":{"$error":"#N/A"}},{"$f":"VLOOKUP(AI5,Подписанты!$A$4:$F$15,6,FALSE)","v":{"$error":"#N/A"}},{"$f":"VLOOKUP(AN5,Подписанты!$A$50:$E$56,4,FALSE)","v":{"$error":"#N/A"}},{"$f":"VLOOKUP(AN5,Подписанты!$A$50:$E$56,5,FALSE)","v":{"$error":"#N/A"}},{"$f":"VLOOKUP(AJ5,Подписанты!$A$18:$E$23,4,FALSE)","v":{"$error":"#N/A"}},{"$f":"VLOOKUP(AJ5,Подписанты!$A$18:$E$23,5,FALSE)","v":{"$error":"#N/A"}},{"$f":"VLOOKUP(AK5,Подписанты!$A$26:$E$30,4,FALSE)","v":{"$error":"#N/A"}},{"$f":"VLOOKUP(AK5,Подписанты!$A$26:$E$30,5,FALSE)","v":{"$error":"#N/A"}},null,null,null,null,null,null,null,null,null,null,null,null,null,null,null,null,null,null,null,"м"]
[4,"008","000-АС2","008/000-АС2","2022-12-15","2022-12-15","2022-12-15","Обратная засыпка ","  Обратная засыпка песком глубинных реперов экскаватором с ковшом вместимостью 0,65  м3 (в т.ч. вручную 9,48 м3) с уплотнением - 95  м3","Г.5.0000.012-И.ПН-16-ТПВ_ГТП-04.000-АС2 лист 2","Согласно реестру от 15.12.2022 г.",{"$f":"IF(ISBLANK(M6),_xlfn.CONCAT(\"Исполнительная схема №\",D6,\" от \",TEXT(E6,\"ДД.ММ.ГГГГ \\г.\")),_xlfn.CONCAT(\"Исполнительная схема №\",D6,\" от \",TEXT(E6,\"ДД.ММ.ГГГГ \\г., \"),M6))","v":"Исполнительная схема №008/000-АС2 от 15.12.2022 г., Протокол испытаний №008/000-АС2 от 15.12.2022 г."},"Протокол испытаний №008/000-АС2 от 15.12.2022 г.","Исполнительная схема №008/000-АС2 от 15.12.2022 г., Протокол испытаний №008/000-АС2 от 15.12.2022 г.",{"$f":"IF(ISBLANK(M6),\"\",M6)","v":"Протокол испытаний №008/000-АС2 от 15.12.2022 г."},null,"Г.5.0000.012-И.ПН-16-ТПВ_ГТП-04.000-АС2 лист 2",{"$f":"VLOOKUP(AI6,Подписанты!$A$4:$E$15,4,FALSE)","v":{"$error":"#N/A"}},{"$f":"VLOOKUP(AI6,Подписанты!$A$4:$E$15,5,FALSE)","v":{"$error":"#N/A"}},{"$f":"VLOOKUP(AI6,Подписанты!$A$4:$F$15,6,FALSE)","v":{"$error":"#N/A"}},{"$f":"VLOOKUP(AN6,Подписанты!$A$50:$E$56,4,FALSE)","v":{"$error":"#N/A"}},{"$f":"VLOOKUP(AN6,Подписанты!$A$50:$E$56,5,FALSE)","v":{"$error":"#N/A"}},{"$f":"VLOOKUP(AJ6,Подписанты!$A$18:$E$23,4,FALSE)","v":{"$error":"#N/A"}},{"$f":"VLOOKUP(AJ6,Подписанты!$A$18:$E$23,5,FALSE)","v":{"$error":"#N/A"}},{"$f":"VLOOKUP(AK6,Подписанты!$A$26:$E$30,4,FALSE)","v":{"$error":"#N/A"}},{"$f":"VLOOKUP(AK6,Подписанты!$A$26:$E$30,5,FALSE)","v":{"$error":"#N/A"}},null,null,null,null,null,null,null,null,null,null,null,null,null,null,null,null,null,null,null,"т"]

{"sheet":"АОСР","index":2,"n_rows":114,"n_cols":13,"rows_kept":114,"cut":false,"hidden":false,"merged":[[29,0,29,9],[30,0,30,9],[31,4,31,5],[32,0,32,9],[33,1,33,2],[33,6,33,9],[35,0,35,9],[23,0,23,9],[1,0,1,9],[2,0,2,9],[3,0,3,9],[4,0,4,9],[5,0,5,9],[12,0,12,9],[13,0,13,9],[14,0,14,3],[14,4,14,9],[6,0,6,9],[7,0,7,9],[8,0,8,9],[9,0,9,9],[10,0,10,9],[11,0,11,9],[15,0,15,9],[16,0,16,9],[28,0,28,9],[39,0,39,9],[40,0,40,5],[40,6,40,9],[41,0,41,9],[42,0,42,9],[43,0,43,5],[43,6,43,9],[34,0,34,9],[36,0,36,9],[37,0,37,9],[38,0,38,9],[24,0,24,9],[25,0,25,9],[26,0,26,9],[27,0,27,9],[22,0,22,9],[17,0,17,9],[18,0,18,9],[19,0,19,9],[20,0,20,9],[21,0,21,9],[50,0,50,9],[51,0,51,9],[52,0,52,9],[53,0,53,5],[53,6,53,9],[54,0,54,9],[44,0,44,9],[45,0,45,9],[46,6,46,9],[47,0,47,9],[48,0,48,9],[49,0,49,9],[55,0,55,9],[56,0,56,9],[57,0,57,9],[58,0,58,5],[58,6,58,9],[59,0,59,9],[60,0,60,5],[60,6,60,9],[61,0,61,9],[66,0,66,9],[67,0,67,9],[68,0,68,9],[69,0,69,9],[70,0,70,9],[74,0,74,9],[62,0,62,3],[62,4,62,9],[63,0,63,3],[63,4,63,9],[64,0,64,9],[65,0,65,9],[76,0,76,9],[77,0,77,9],[78,0,78,9],[79,0,79,9],[80,0,80,1],[80,2,80,4],[80,5,80,9],[70,21,70,30],[71,0,71,9],[72,0,72,9],[73,0,73,9],[75,0,75,9],[113,0,113,9],[104,0,104,9],[105,0,105,9],[106,0,106,9],[107,0,107,9],[111,0,111,9],[112,0,112,9],[98,0,98,9],[99,0,99,9],[100,0,100,9],[101,0,101,9],[102,0,102,9],[103,0,103,9],[108,0,108,9],[109,0,109,9],[90,0,90,1],[89,0,89,2],[89,3,89,9],[110,0,110,9],[92,0,92,9],[93,0,93,9],[95,0,95,9],[96,0,96,9],[94,0,94,9],[97,0,97,9],[91,0,91,1],[91,2,91,9],[85,0,85,9],[86,0,86,4],[86,5,86,9],[87,0,87,9],[88,0,88,9],[81,0,81,1],[81,2,81,4],[81,5,81,9],[82,0,82,9],[83,0,83,9],[84,0,84,9]]}
[null,null,null,null,null,null,null,null,null,"РД-11-02-2006"]
["Приложение №3  \nк Требованиям к составу и порядку ведения  исполнительной \nдокументации при строительстве, реконструкции, капитальном ремонте \nобъектов капитального строительства и требования,  предъявляемые к актам \nосвидетельствования работ, конструкций,  участков сетей инженерно-технического \nобеспечения, утвержденным приказом  Федеральной службы  по экологическому, \nтехнологическому и атомному надзору от 26 декабря 2006 года N 1128"]
["Объект капитального строительства"]
[{"$f":"_xlfn.CONCAT(Подписанты!A69)","v":""}]
[" (наименование проектной документации, почтовый или строительный адрес объекта капитального строительства)"]
["Застройщик (технический заказчик, эксплуатирущая организация или региональный оператор)"]
[{"$f":"_xlfn.CONCAT(Подписанты!B74,\", \",Подписанты!B76)","v":", "}]
["(фамилия, имя, отчество, адрес места жительства, ОРГНИП, ИНН индивидуального предпринимателя,"]
[{"$f":"_xlfn.CONCAT(Подписанты!A77,\"\",Подписанты!B77,\", \",Подписанты!A78,\"\",Подписанты!B78,\", \",Подписанты!B80,\", \",Подписанты!B81)","v":", , , "}]
["наименование, ОГРН, ИНН, место нахождения, юридического лица, телефон/факс,"]
[{"$f":"_xlfn.CONCAT(Подписанты!B83)","v":""}]
["наименование, ОГРН, ИНН саморегулирующей организации, членом которой является - для индивидуальных предпринимателей и юридических лиц;"]
[{"$f":"_xlfn.CONCAT(Подписанты!A84,\"\",Подписанты!B84,\", \",Подписанты!A85,\"\",Подписанты!B85)","v":", "}]
["фамилия, имя, отчество, паспортные данные, адрес места жительства, телефон/факс - для физических лиц, не являющихся индивидуальными предпринимателями)"]
["Лицо, осуществляющее строительство"]
[{"$f":"_xlfn.CONCAT(Подписанты!D74,\", \",Подписанты!D76)","v":", "}]
["(фамилия, имя, отчество, адрес места жительства, ОРГНИП, ИНН индивидуального предпринимателя,"]
[{"$f":"_xlfn.CONCAT(Подписанты!D81)","v":""}]
["наименование, ОГРН, ИНН, место нахождения, юридического лица, телефон/факс,"]
[{"$f":"_xlfn.CONCAT(Подписанты!A78,\" \",Подписанты!D78,\", \",Подписанты!A77,\" \",Подписанты!D77,\", \",Подписанты!D83)","v":" ,  , "}]
[{"$f":"_xlfn.CONCAT(Подписанты!A85,Подписанты!D85,\", \",Подписанты!A84,Подписанты!D84)","v":", "}]
["наименование, ОГРН, ИНН саморегулирующей организации, членом которой является)"]
["Лицо, осуществляющее подготовку проектной документации"]
[{"$f":"_xlfn.CONCAT(Подписанты!E74)","v":""}]
["(фамилия, имя, отчество, адрес места жительства, ОРГНИП, ИНН индивидуального предпринимателя,"]
[{"$f":"_xlfn.CONCAT(Подписанты!A77,Подписанты!E77,\", \",Подписанты!A78,Подписанты!E78,\", \",Подписанты!E80,\",\",Подписанты!E81)","v":", , ,"}]
["наименование, ОГРН, ИНН, место нахождения, юридического лица, телефон/факс,"]
[{"$f":"_xlfn.CONCAT(Подписанты!E83,\", \",Подписанты!A84,Подписанты!E84,\", \",Подписанты!A85,Подписанты!E85)","v":", , "}]
["наименование, ОГРН, ИНН саморегулирующей организации, членом которой является)"]
[]
["\n"]
[null,null,null,null,"АКТ "]
["освидетельствования скрытых работ"]
["№",{"$f":"INDEX(№акта,Позиция+2)","v":"005/000-АС5"},null,null,null,null,{"$f":"INDEX('Данные АОСР'!E:E,Позиция+2)","v":"2022-12-15"}]
["Представитель застройщика (технического заказчика, эксплуатирующей организации или регионального оператора) по вопросам строительного контроля"]
[{"$f":"_xlfn.CONCAT(INDEX('Данные АОСР'!R:R,Позиция+2),\", \",INDEX('Данные АОСР'!S:S,Позиция+2))","v":{"$error":"#N/A"}}]
[{"$f":"INDEX('Данные АОСР'!T:T,Позиция+2)","v":{"$error":"#N/A"}}]
["(должность, фамилия, инициалы, идентификационный номер в национальном реестре специалистов  в области строительства, реквизиты распорядительного документа, подтверждающего        ",null,null,null,null,null,null,null,null,null,null,null,{"$f":"IFERROR((INDEX('Данные АОСР'!AG:AG,Позиция+2)),\"\")","v":0}]
["полномочия, с указанием наименования, ОГРН, ИНН, места нахождения юридического лица, фамилии, имени, отчества, адрес места жительства, ОРГНИП, ИНН, индивидуального предпринимателя)                                                         ",null,null,null,null,null,null,null,null,null,">>>>>",2,"<<<<<"]
["Представитель лица, осуществляющего строительство",null,null,null,null,null,null,null,null,null,{"$f":"IF(ISBLANK(INDEX('Данные АОСР'!H:H,Позиция+2,0)),\"\",INDEX('Данные АОСР'!H:H,Позиция+2,0))","v":"Гидроизоляция бетонных поверхностей"}]
[{"$f":"INDEX('Данные АОСР'!W:W,Позиция+2)","v":{"$error":"#N/A"}},null,null,null,null,null,{"$f":"INDEX('Данные АОСР'!X:X,Позиция+2)","v":{"$error":"#N/A"}}]
["(должность, фамилия, инициалы, реквизиты распорядительного документа, подтверждающего полномочия)"]
["Представитель лица, осуществляющего строительство, по вопросам строительного контроля                                                                                     (специалист по организации строительства)"]
[{"$f":"INDEX('Данные АОСР'!Y:Y,Позиция+2)","v":{"$error":"#N/A"}},null,null,null,null,null,{"$f":"INDEX('Данные АОСР'!Z:Z,Позиция+2)","v":{"$error":"#N/A"}}]
["(должность, фамилия, инициалы, идентификационный номер в национальном реестре специалистов в области строительства, реквизиты распорядительного документа,                                           подтверждающего полномочия)"]
["Представитель лица, осуществляющего подготовку проектной документации"]
[{"$f":"INDEX('Данные АОСР'!AA:AA,Позиция+2)","v":0},null,null,null,null,null,{"$f":"INDEX('Данные АОСР'!AB:AB,Позиция+2)","v":0}]
["(должность, фамилия, инициалы, реквизиты распорядительного документа, подтверждающего полномочия, с указанием наименования, ОГРН, ИНН, места нахождения юридического лица,"]
[{"$f":"LEFT(INDEX('Данные АОСР'!AC:AC,Позиция+2),105)","v":""}]
["фамилии, имени, отчества, адрес места жительства, ОГРНИП, ИНН, индивидуального предпринимателя,"]
[{"$f":"RIGHT(INDEX('Данные АОСР'!AC:AC,Позиция+2),78)","v":""}]
[" фамилии, имени, отчества, адрес места жительства, ОГРНИП, ИНН, индивидуального предпринимателя, наименования, ОГРН, ИНН саморегулирующей организации, членом которой является указанное юридическое лицо, индивидуальный предприниматель)"]
["Представитель лица, выполневшего работы, подлежащие освидетельствованию"]
[{"$f":"INDEX('Данные АОСР'!AD:AD,Позиция+2)","v":0},null,null,null,null,null,{"$f":"INDEX('Данные АОСР'!AE:AE,Позиция+2)","v":0}]
["(должность, фамилия, инициалы, реквизиты распорядительного документа, подтверждающего полномочия, с указанием наименования, ОГРН, ИНН, места  "]
[{"$f":"INDEX('Данные АОСР'!AF:AF,Позиция+2)","v":0}]
["нахождения юридического лица, фамилии, имени, отчества, адрес места жительства, ОРГНИП, ИНН, индивидуального предпринимателя)"]
["а также иные представители лиц, участвующих в освидетельствовании"]
[{"$f":"INDEX('Данные АОСР'!U:U,Позиция+2)","v":{"$error":"#N/A"}},null,null,null,null,null,{"$f":"INDEX('Данные АОСР'!V:V,Позиция+2)","v":{"$error":"#N/A"}}]
["(должность с указанием наименования организации, фамилия, инициалы, реквизиты распорядительного документа подтверждающие полномочия)"]
[{"$f":"(INDEX('Данные АОСР'!AG:AG,Позиция+2))","v":0},null,null,null,null,null,{"$f":"(INDEX('Данные АОСР'!AH:AH,Позиция+2))","v":0}]
["(должность с указанием наименования организации, фамилия, инициалы, реквизиты распорядительного документа подтверждающие полномочия)"]
["произвели осмотр работ, выполненных",null,null,null,"ООО Компания \"ВЛком\""]
[null,null,null,null,"(наименование лица, выполнившего работы, подлежащие осведетельствованию)"]
["и составили настоящий акт о нижеследующем:"]
[]
["1. К освидетельствованию предъявлены следующие работы:"]
[{"$f":"INDEX('Данные АОСР'!I:I,Позиция+2)","v":"  Гидроизоляция битумным праймером бетонных конструкций, соприкасающихся с грунтом - 7,875  м2"}]
["(наименование скрытых работ)"]
["2. Работы выполнены по проектной документации"]
[{"$f":"INDEX('Данные АОСР'!J:J,Позиция+2)","v":"Г.5.0000.012-И.ПН-16-ТПВ_ГТП-04.000-АС5 лист 2"}]
[{"$f":"Подписанты!G39","v":0}]
["(номер, другие реквизиты чертежа, наименование проектной и/или рабочей документации, сведения о лицах, осуществляющих подготовку  раздела проектной и/или рабочей документации)"]
["3. При выполнении работ применены:"]
[{"$f":"INDEX('Данные АОСР'!K:K, Позиция+2)","v":"Праймер битумный, АОРПИ № 000.7/000-АС5 от 10.12.2022 г."}]
["(наименование строительных материалов (изделий), реквизиты сертификатов и/или других документов, подтверждающих их качество и безопасность)"]
["4. Предъявлены документы, подтверждающие соответствие работ предъявляемым к ним требованиям"]
[{"$f":"INDEX('Данные АОСР'!L:L, Позиция+2)","v":"Исполнительная схема №005/000-АС5 от 15.12.2022 г., Протокол испытаний №005/000-АС5 от 15.12.2022 г."}]
["(исполнительные схемы и чертежи, результаты экспертиз, обследований, лабораторных и иных испытаний выполненных работ, проведенных в процессе строительного контроля)"]
["5. Даты:"]
["начала работ  ",null,{"$f":"INDEX(начало,Позиция+2)","v":"2022-12-15"}]
["окончания работ  ",null,{"$f":"INDEX(оконч,Позиция+2)","v":"2022-12-15"}]
["6. Работы выполнены в соответствии с"]
[{"$f":"A71","v":"Г.5.0000.012-И.ПН-16-ТПВ_ГТП-04.000-АС5 лист 2"}]
[{"$f":"A72","v":0}]
[" (наименование и структурные единицы технических регламентов, иных нормативных правовых актов, разделы проектной и/или рабочей документации)"]
["7. Разрешается производство последующих работ по:"]
[{"$f":"IF(INDEX('Данные АОСР'!P:P,Позиция+2)=0,\" -\",INDEX('Данные АОСР'!P:P,Позиция+2))","v":" -"}]
["(наименование работ, конструкций, участков сетей инженерно-технического обеспечения)"]
["Дополнительные сведения",null,null,"отсутствуют "]
["Акт составлен в ",null,4,"экземплярах. "]
["Приложения",null,{"$f":"A78","v":"Исполнительная схема №005/000-АС5 от 15.12.2022 г., Протокол испытаний №005/000-АС5 от 15.12.2022 г."}]
["(исполнительные схемы и чертежи, результаты экспертиз, обследований, лабораторных и иных испытаний)"]
["Представитель застройщика (технического заказчика, эксплуатирующей организации или регионального оператора) по вопросам строительного контроля"]
[{"$f":"INDEX('Данные АОСР'!R:R,Позиция+2)","v":{"$error":"#N/A"}}]
["(фамилия, инициалы, подпись)"]
["Представитель лица, осуществляющего строительство"]
[{"$f":"A41","v":{"$error":"#N/A"}}]
["(фамилия, инициалы, подпись)"]
["Представитель лица, осуществляющего строительство, по вопросам строительного контроля                                                                      (специалист по организации строительства)"]
[{"$f":"A44","v":{"$error":"#N/A"}}]
["(фамилия, инициалы, подпись)"]
["Представитель лица, осуществляющего подготовку проектной документации"]
[{"$f":"A47","v":0}]
["(фамилия, инициалы, подпись)"]
["Представитель лица, выполневшего работы, подлежащие освидетельствованию"]
[{"$f":"A54","v":0}]
["(фамилия, инициалы, подпись)"]
["Представители иных лиц"]
[{"$f":"A59","v":{"$error":"#N/A"}}]
["(фамилия, инициалы, подпись)"]
["Представители иных лиц"]
[{"$f":"A61","v":0}]
["(фамилия, инициалы, подпись)"]